bitfinex-derivatives/quotes_BTCF0:USTF0_20251204
["timestamp","ask_amount","ask_price","bid_price","bid_amount"]
[1764860263360,0.00080666,91951.0,91948.0,0.0108737]
[1764860263661,0.00080666,91951.0,91940.0,0.3608]
[1764860263662,0.00080666,91951.0,91950.0,0.45372002]
[1764860263862,0.00080666,91951.0,91950.0,0.60657352]
[1764860264067,0.05080666,91951.0,91950.0,0.60657352]
[1764860264269,0.05,91951.0,91950.0,0.60657352]
[1764860264662,0.0108728,91956.0,91955.0,0.4513]
[1764860264967,0.55328,91956.0,91950.0,0.14198]
[1764860265168,0.55328,91956.0,91940.0,0.3608]
[1764860265169,0.00080666,91951.0,91940.0,0.3608]
[1764860265361,0.00080666,91943.0,91942.0,0.46475504]
[1764860265562,0.0158734,91951.0,91948.0,0.0108736]
[1764860265765,0.0158734,91951.0,91945.0,0.010874]
[1764860265766,0.0108739,91947.0,91945.0,0.010874]
[1764860265961,0.0108741,91945.0,91943.0,0.0108743]
[1764860266270,0.45408666,91943.0,91942.0,0.00016062]
[1764860266468,0.55408666,91943.0,91942.0,0.00258064]
[1764860266768,0.55408666,91943.0,91942.0,0.00016062]
[1764860267083,0.45328,91927.0,91926.0,0.00027196]
[1764860267374,0.4608,91927.0,91926.0,0.45157196]
[1764860267762,0.69232,91927.0,91926.0,0.00027196]
[1764860267961,0.91408,91927.0,91926.0,0.00027196]
[1764860268365,0.3608,91927.0,91926.0,0.46486828]
[1764860268567,0.05,91927.0,91926.0,0.00269198]
[1764860268767,0.1,91927.0,91926.0,0.45399198]
[1764860269160,0.1,91927.0,91926.0,0.45157196]
[1764860269360,0.108,91927.0,91926.0,0.45157196]
[1764860269874,0.1,91927.0,91926.0,0.45157196]
[1764860270075,0.108,91927.0,91926.0,0.45157196]
[1764860270463,0.13240484,91927.0,91926.0,0.45157196]
[1764860270664,0.058,91927.0,91926.0,0.45157196]
[1764860271370,0.059,91927.0,91926.0,0.45157196]
[1764860271572,0.059,91927.0,91926.0,0.00027196]
[1764860271573,0.51228,91927.0,91926.0,0.00027196]
[1764860271972,0.33252,91927.0,91926.0,0.22043198]
[1764860272172,0.33952,91927.0,91926.0,0.00027196]
[1764860272376,0.34052,91927.0,91926.0,0.00269198]
[1764860272872,0.109,91927.0,91926.0,0.45157196]
[1764860273075,0.56228,91927.0,91926.0,0.00027196]
[1764860273474,0.4698,91927.0,91913.0,0.3608]
[1764860273670,0.45328,91914.0,91913.0,0.3608]
[1764860273871,0.55328,91914.0,91913.0,0.3716778]
[1764860274470,0.55328,91914.0,91913.0,0.0108778]
[1764860274676,0.55328,91914.0,91905.0,0.15495397]
[1764860274677,0.45328,91909.0,91908.0,0.01096012]
[1764860274876,0.10080666,91909.0,91908.0,0.46468014]
[1764860275071,0.10080666,91909.0,91908.0,0.45380174]
[1764860275276,0.91488666,91909.0,91908.0,8.172e-05]
[1764860275674,0.69312666,91909.0,91908.0,0.21782172]
[1764860275879,0.91788666,91909.0,91908.0,8.172e-05]
[1764860276080,0.10380666,91909.0,91908.0,0.45380174]
[1764860276280,0.10080666,91909.0,91908.0,0.45380174]
[1764860276580,0.10080666,91909.0,91908.0,8.172e-05]
[1764860276581,0.56008666,91909.0,91908.0,8.172e-05]
[1764860276782,0.92088666,91909.0,91908.0,8.172e-05]
[1764860276976,0.92088666,91909.0,91908.0,0.01096012]
[1764860277380,0.56008666,91909.0,91908.0,0.01096012]
[1764860279477,0.56008666,91909.0,91908.0,8.172e-05]
[1764860279785,0.45328,91900.0,91899.0,0.01155813]
[1764860279980,0.55570002,91900.0,91899.0,0.21774]
[1764860280178,0.55570002,91900.0,91899.0,0.4513]
[1764860280480,0.10242002,91900.0,91899.0,0.4621795]
[1764860280678,0.55580007,91900.0,91899.0,0.2286195]
[1764860280875,0.55580007,91900.0,91899.0,0.0108795]
[1764860281075,0.45580007,91900.0,91899.0,0.0108795]
[1764860281278,0.10252007,91900.0,91886.0,0.00027208]
[1764860281475,0.00242002,91891.0,91886.0,0.00027208]
[1764860281679,0.00242002,91891.0,91886.0,0.01115308]
[1764860281680,0.23394002,91887.0,91886.0,0.01115308]
[1764860281884,0.10242002,91887.0,91886.0,0.47367247]
[1764860282076,0.10242002,91887.0,91886.0,0.46245308]
[1764860282271,0.55570002,91887.0,91886.0,0.45157208]
[1764860282477,0.55570002,91887.0,91886.0,0.00027208]
[1764860282692,0.55570002,91887.0,91886.0,0.00427208]
[1764860283087,1.07154002,91887.0,91886.0,0.00427208]
[1764860283387,1.07154002,91887.0,91868.0,0.14198]
[1764860283388,1.07154002,91887.0,91852.0,0.010885]
[1764860283389,0.11832,91858.0,91852.0,0.010885]
[1764860283590,0.11832,91858.0,91835.0,0.3608]
[1764860283591,0.45570002,91856.0,91843.0,0.0108861]
[1764860283885,0.45570002,91856.0,91855.0,0.23684643]
[1764860283886,0.55570002,91856.0,91855.0,0.23684643]
[1764860284186,7.771e-05,91857.0,91856.0,0.4512046]
[1764860284388,0.10249773,91857.0,91856.0,0.44032]
[1764860284583,0.23643,91856.0,91855.0,0.00010643]
[1764860284790,0.10242002,91856.0,91855.0,0.45131113]
[1764860284979,0.101,91856.0,91855.0,0.45131113]
[1764860285285,0.00016323,91866.0,91855.0,0.45131113]
[1764860285286,3.23e-06,91866.0,91865.0,0.4512035]
[1764860285484,0.22237624,91890.0,91889.0,0.4512006]
[1764860285685,0.22237624,91900.0,91899.0,0.44032]
[1764860285887,0.22237624,91920.0,91905.0,0.0108787]
[1764860286086,0.54475248,91920.0,91910.0,0.0108782]
[1764860286392,0.2005549,91952.0,91910.0,0.0108782]
[1764860286393,0.22237624,91930.0,91929.0,0.44032]
[1764860286576,0.22237624,91930.0,91924.0,0.0108764]
[1764860286577,0.22253947,91939.0,91938.0,0.44032]
[1764860286777,0.05016323,91939.0,91938.0,0.44032]
[1764860286980,0.05016323,91939.0,91929.0,0.00016323]
[1764860286981,0.0108754,91934.0,91929.0,0.00016323]
[1764860287184,0.00242002,91930.0,91929.0,0.00016323]
[1764860287391,0.10242002,91930.0,91929.0,0.00016323]
[1764860287689,0.54623002,91930.0,91929.0,0.00016323]
[1764860288085,0.10242002,91930.0,91894.0,0.19264]
[1764860288286,0.22237624,91910.0,91909.0,0.44032]
[1764860288590,0.22237624,91919.0,91910.0,0.0108781]
[1764860288787,0.27237624,91919.0,91918.0,0.3608]
[1764860288983,0.28643,91919.0,91918.0,0.3608]
[1764860289181,0.23643,91919.0,91918.0,0.3608]
[1764860289485,0.0108769,91922.0,91918.0,0.3608]
[1764860289692,0.00242002,91919.0,91918.0,0.80112]
[1764860289878,0.00242002,91919.0,91894.0,0.51588]
[1764860289879,0.66988002,91919.0,91910.0,0.3608]
[1764860290081,0.00242002,91911.0,91903.0,0.0108801]
[1764860290285,0.00242002,91904.0,91900.0,0.3608]
[1764860290489,0.00242002,91901.0,91900.0,0.3608]
[1764860290785,0.22237624,91910.0,91901.0,0.0108803]
[1764860290984,0.00242002,91902.0,91901.0,0.0108803]
[1764860291192,0.44381,91901.0,91900.0,0.3608]
[1764860291386,0.54623002,91901.0,91900.0,0.3608]
[1764860291785,0.54623002,91901.0,91900.0,0.3618]
[1764860291985,0.10242002,91901.0,91900.0,0.80212]
[1764860292387,0.10242002,91901.0,91900.0,0.3618]
[1764860292388,0.55623002,91901.0,91900.0,0.3618]
[1764860292696,0.010881,91896.0,91895.0,0.23674]
[1764860292888,0.11330102,91896.0,91895.0,0.23674]
[1764860293192,0.34973102,91896.0,91888.0,0.48695]
[1764860293488,0.01,91901.0,91888.0,0.48695]
[1764860293489,0.01,91901.0,91900.0,0.44032]
[1764860293690,0.0108811,91895.0,91888.0,0.3716819]
[1764860293896,0.23643,91888.0,91886.0,0.3608]
[1764860294076,0.00242002,91887.0,91886.0,0.59754]
[1764860294280,0.05242002,91887.0,91886.0,0.8120021]
[1764860294483,0.0108812,91894.0,91893.0,0.23674]
[1764860294678,0.0108817,91890.0,91888.0,0.001]
[1764860294883,0.44623002,91889.0,91888.0,0.001]
[1764860295091,0.54623002,91889.0,91888.0,0.001]
[1764860295289,0.23643,91887.0,91886.0,0.3628]
[1764860295484,0.54823002,91887.0,91886.0,0.002]
[1764860295992,0.54623002,91887.0,91886.0,0.002]
[1764860296778,0.10242002,91887.0,91877.0,0.3608]
[1764860296980,0.22237624,91887.0,91886.0,0.44032]
[1764860297186,0.1,91887.0,91886.0,0.80112]
[1764860297383,0.006,91889.0,91888.0,0.44032]
[1764860297589,0.44381,91888.0,91887.0,0.010882]
[1764860297784,0.51588,91895.0,91894.0,0.23674]
[1764860297989,0.1,91895.0,91894.0,0.44032]
[1764860298186,0.0108807,91898.0,91897.0,0.44032]
[1764860298378,0.3608,91910.0,91903.0,0.44032]
[1764860298580,0.00242002,91904.0,91903.0,0.23674]
[1764860298780,0.10242002,91904.0,91903.0,0.44032]
[1764860298987,0.00016323,91905.0,91904.0,0.4512]
[1764860299295,0.01088,91904.0,91888.0,0.12615]
[1764860299492,0.1,91904.0,91903.0,0.23674]
[1764860299697,0.01516323,91905.0,91904.0,0.4512]
[1764860300084,0.06516323,91905.0,91904.0,0.812]
[1764860300285,0.22237624,91920.0,91904.0,0.812]
[1764860300286,0.22237624,91920.0,91919.0,0.4511982]
[1764860300494,0.22237624,91929.0,91925.0,0.44032]
[1764860300701,0.10269198,91926.0,91925.0,0.44032]
[1764860301191,0.05027196,91926.0,91925.0,0.44032]
[1764860301696,0.05027196,91926.0,91925.0,0.80112]
[1764860301884,0.02027196,91926.0,91925.0,0.80212]
[1764860302293,0.07027196,91926.0,91925.0,0.80112]
[1764860302496,0.51208196,91926.0,91925.0,0.3618]
[1764860302691,0.11827196,91926.0,91925.0,0.44132]
[1764860303002,0.02027196,91926.0,91925.0,0.44132]
[1764860303189,0.07027196,91926.0,91925.0,0.44132]
[1764860303796,0.06027196,91926.0,91925.0,0.44132]
[1764860304299,0.02027196,91926.0,91925.0,0.44132]
[1764860304595,0.00016323,91935.0,91934.0,0.44032]
[1764860304788,0.05016323,91935.0,91934.0,0.8119964]
[1764860305185,0.05016323,91935.0,91934.0,0.4511964]
[1764860306393,0.05216323,91935.0,91934.0,0.4511964]
[1764860306788,0.00216323,91935.0,91934.0,0.4511964]
[1764860307103,0.05116323,91935.0,91934.0,0.4511964]
[1764860307290,0.00116323,91935.0,91934.0,0.4511964]
[1764860307694,0.22237624,91950.0,91949.0,0.4511947]
[1764860307998,0.0108725,91968.0,91965.0,0.44032]
[1764860308294,0.46349186,91966.0,91954.0,0.010874]
[1764860308497,0.44381,91951.0,91950.0,0.0108745]
[1764860308688,0.54381,91951.0,91950.0,0.0108745]
[1764860309090,0.0108737,91957.0,91956.0,0.44032]
[1764860309298,0.0108741,91954.0,91950.0,0.12615]
[1764860309486,0.1,91954.0,91952.0,0.0108743]
[1764860309687,0.3608,91958.0,91957.0,0.23674]
[1764860309993,0.3608,91958.0,91957.0,0.44032]
[1764860309994,0.1,91958.0,91957.0,0.44032]
[1764860310489,0.1,91958.0,91954.0,0.0108741]
[1764860310490,0.00016314,91960.0,91959.0,0.44032]
[1764860310695,0.00027184,91966.0,91965.0,0.5773428]
[1764860310997,0.3608,91977.0,91976.0,0.4511915]
[1764860311194,0.3608,91987.0,91986.0,0.4511903]
[1764860311396,0.3608,91998.0,91997.0,0.44032]
[1764860311600,0.4608,91998.0,91997.0,0.44032]
[1764860311992,0.010869,91997.0,91988.0,0.01103305]
[1764860312194,0.23885002,91989.0,91988.0,0.00016305]
[1764860312390,0.3608,91998.0,91994.0,0.44032]
[1764860312391,0.0108693,91995.0,91994.0,0.44032]
[1764860312590,0.3608,91998.0,91997.0,0.44032]
[1764860312797,0.4608,91998.0,91997.0,0.23674]
[1764860312994,0.23643,91996.0,91995.0,0.0108692]
[1764860313202,0.3608,91998.0,91997.0,0.44032]
[1764860313404,0.4608,91998.0,91997.0,0.44032]
[1764860313601,0.67035,91998.0,91995.0,0.0108692]
[1764860313905,0.21197002,91996.0,91991.0,0.0108697]
[1764860314096,0.00242002,91992.0,91991.0,0.0108697]
[1764860314293,0.10242002,91992.0,91991.0,0.0108697]
[1764860314895,0.50224002,91992.0,91991.0,0.0108697]
[1764860315203,0.0108691,91997.0,91996.0,0.40787]
[1764860315405,0.0108691,91997.0,91988.0,0.00016305]
[1764860315406,0.10242002,91997.0,91991.0,0.0138696]
[1764860315702,0.40224002,91992.0,91991.0,0.003]
[1764860315892,0.50224002,91992.0,91991.0,0.003]
[1764860316093,0.50324002,91992.0,91991.0,0.003]
[1764860316703,0.0108713,91978.0,91975.0,0.0108715]
[1764860316902,0.00242002,91976.0,91975.0,0.4187415]
[1764860317094,0.10242002,91976.0,91975.0,0.40787]
[1764860317403,0.0108725,91968.0,91965.0,0.0108727]
[1764860317606,0.00242002,91966.0,91965.0,0.0108727]
[1764860317905,0.00016305,91975.0,91974.0,0.40787]
[1764860318105,0.10258307,91975.0,91974.0,0.40787]
[1764860319199,0.39982,91973.0,91972.0,0.010872]
[1764860319399,0.50224002,91973.0,91972.0,0.010872]
[1764860320006,0.39982,91966.0,91965.0,0.013]
[1764860320216,0.50224002,91966.0,91965.0,0.013]
[1764860320503,0.50224002,91966.0,91956.0,0.01103685]
[1764860320812,0.32237624,91966.0,91965.0,0.5366928]
[1764860320999,0.1,91966.0,91965.0,0.5366928]
[1764860321306,0.1,91966.0,91965.0,0.5486928]
[1764860321601,0.5106927,91966.0,91965.0,0.012]
[1764860321804,0.5106927,91966.0,91956.0,0.00016305]
[1764860321805,0.5106927,91966.0,91963.0,0.0108729]
[1764860322002,0.00242002,91964.0,91956.0,0.00016305]
[1764860322202,0.00242002,91957.0,91956.0,0.00016305]
[1764860322407,0.30286372,91957.0,91956.0,0.00016305]
[1764860322704,0.49888372,91957.0,91956.0,0.00016305]
[1764860323603,0.48801002,91957.0,91956.0,0.00016305]
[1764860324107,0.48901002,91957.0,91956.0,0.00016305]
[1764860324701,0.10342002,91957.0,91956.0,0.37470305]
[1764860324907,0.001,91957.0,91956.0,0.37470305]
[1764860325103,0.3608,91987.0,91970.0,0.37454]
[1764860325104,0.40296,91978.0,91970.0,0.37454]
[1764860325302,0.4008,91971.0,91970.0,0.3854122]
[1764860325503,0.79639,91971.0,91970.0,0.0108722]
[1764860325703,0.18957,91961.0,91960.0,0.0108733]
[1764860326011,0.3964637,91957.0,91949.0,0.0108746]
[1764860326215,0.85968372,91957.0,91931.0,0.3608]
[1764860326400,0.85968372,91957.0,91947.0,0.0108748]
[1764860326603,0.85968372,91957.0,91949.0,0.0108746]
[1764860326911,0.66366372,91957.0,91956.0,0.37470305]
[1764860327210,0.66566372,91957.0,91956.0,0.37470305]
[1764860327607,0.65479002,91957.0,91956.0,0.18666305]
[1764860329001,0.65379002,91957.0,91956.0,0.18666305]
[1764860329605,0.46422002,91957.0,91956.0,0.37470305]
[1764860329810,0.41322002,91957.0,91956.0,0.37470305]
[1764860330011,0.41422002,91957.0,91956.0,0.37470305]
[1764860330508,0.41422002,91957.0,91948.0,0.3716748]
[1764860330509,0.43963624,91957.0,91936.0,0.1370261]
[1764860330708,0.3608,91948.0,91947.0,0.3854149]
[1764860330913,0.46322002,91948.0,91947.0,0.3854149]
[1764860331112,0.4008,91948.0,91947.0,0.3854149]
[1764860331517,0.4108,91948.0,91947.0,0.3854149]
[1764860332010,0.05,91948.0,91947.0,0.3854149]
[1764860332419,0.0108757,91942.0,91941.0,0.1973753]
[1764860332720,0.1,91942.0,91941.0,0.3854153]
[1764860332924,0.00016314,91951.0,91947.0,0.0108748]
[1764860333220,0.38801002,91948.0,91947.0,0.0128748]
[1764860333421,0.48801002,91948.0,91947.0,0.0128748]
[1764860333821,0.48801002,91948.0,91947.0,0.0108748]
[1764860334317,0.51345199,91948.0,91947.0,0.0108748]
[1764860334516,0.3964649,91947.0,91946.0,0.1865]
[1764860334818,0.3964659,91939.0,91938.0,0.00016305]
[1764860335122,0.47432549,91939.0,91938.0,0.18666305]
[1764860335622,0.83512549,91939.0,91938.0,0.18666305]
[1764860336718,0.07885959,91939.0,91938.0,0.48601305]
[1764860336914,0.00342002,91939.0,91938.0,0.48601305]
[1764860337119,0.001,91939.0,91938.0,0.48701305]
[1764860337824,0.051,91939.0,91938.0,0.48701305]
[1764860338321,0.051,91939.0,91938.0,0.11347305]
[1764860338521,0.051,91939.0,91938.0,0.48801305]
[1764860338721,0.001,91939.0,91938.0,0.48801305]
[1764860339028,0.22237624,91950.0,91949.0,0.37454]
[1764860339213,0.07543592,91950.0,91949.0,0.3854147]
[1764860339418,0.62580592,91950.0,91949.0,0.3854147]
[1764860340315,0.3964659,91939.0,91938.0,0.00316305]
[1764860340514,0.8572659,91939.0,91938.0,0.00016305]
[1764860340719,0.8572659,91939.0,91918.0,0.3608]
[1764860340720,0.396468,91921.0,91918.0,0.0108783]
[1764860340918,0.496468,91921.0,91918.0,0.0108783]
[1764860341321,0.0108784,91918.0,91914.0,0.0108787]
[1764860341516,0.36322002,91915.0,91899.0,0.3608]
[1764860341721,0.22237624,91909.0,91906.0,0.0108797]
[1764860341922,0.00242002,91907.0,91906.0,0.0108797]
[1764860342230,0.18957,91899.0,91898.0,0.0108806]
[1764860342417,0.0108807,91898.0,91894.0,0.0108811]
[1764860342615,0.1,91898.0,91897.0,0.37454]
[1764860342823,0.55037,91898.0,91897.0,0.1865]
[1764860343117,0.4108,91898.0,91897.0,0.37454]
[1764860343515,0.6612507,91898.0,91894.0,0.0238811]
[1764860343827,0.37040002,91895.0,91894.0,0.013]
[1764860344128,0.37040002,91895.0,91886.0,0.0108821]
[1764860344129,0.10242002,91895.0,91883.0,0.01133965]
[1764860344325,0.36798,91884.0,91883.0,0.01133965]
[1764860344527,0.46798,91884.0,91883.0,0.01133965]
[1764860344829,0.46798,91884.0,91872.0,0.3608]
[1764860344830,0.46798,91884.0,91879.0,0.0108828]
[1764860345020,0.18960002,91880.0,91879.0,0.0108828]
[1764860345218,0.22253948,91893.0,91892.0,0.37822]
[1764860345219,0.00016324,91893.0,91892.0,0.37822]
[1764860345420,0.05258326,91893.0,91892.0,0.37822]
[1764860345815,0.10258326,91893.0,91892.0,0.37822]
[1764860346218,0.02258326,91893.0,91892.0,0.37822]
[1764860346420,0.05016324,91893.0,91892.0,0.37822]
[1764860346831,0.10016324,91893.0,91892.0,0.37822]
[1764860347030,0.00016324,91893.0,91892.0,0.37822]
[1764860347531,0.00012592,91899.0,91898.0,0.37822]
[1764860347927,0.05012592,91899.0,91898.0,0.37822]
[1764860348227,0.00012592,91899.0,91898.0,0.37822]
[1764860348630,0.05012592,91899.0,91898.0,0.3891007]
[1764860349228,0.18718,91893.0,91892.0,0.009]
[1764860349523,0.47040002,91893.0,91892.0,0.009]
[1764860350120,0.36798,91890.0,91889.0,0.00016324]
[1764860350322,0.47040002,91890.0,91889.0,0.00016324]
[1764860350831,0.0108843,91868.0,91865.0,0.0108845]
[1764860351026,0.00242002,91866.0,91865.0,0.0108845]
[1764860351226,0.10242002,91866.0,91865.0,0.0108845]
[1764860351431,0.0108846,91865.0,91863.0,0.3608]
[1764860351625,0.18960002,91864.0,91863.0,0.3608]
[1764860351821,0.10242002,91864.0,91863.0,0.55949]
[1764860352036,0.05242002,91864.0,91863.0,0.73902]
[1764860352334,0.00242002,91864.0,91863.0,0.73902]
[1764860352536,0.10242002,91864.0,91863.0,0.73902]
[1764860352834,0.10242002,91864.0,91851.0,0.01117063]
[1764860352835,0.0108849,91863.0,91851.0,0.01117063]
[1764860353034,0.00242002,91857.0,91856.0,0.01097928]
[1764860353235,0.10242002,91857.0,91856.0,0.01097928]
[1764860353432,0.05242002,91857.0,91856.0,0.38919928]
[1764860353732,0.01097202,91867.0,91866.0,0.0108845]
[1764860353733,0.18726762,91867.0,91866.0,0.0108845]
[1764860354039,0.46806762,91867.0,91866.0,0.0108845]
[1764860354229,0.05008762,91867.0,91866.0,0.3891045]
[1764860355124,8.762e-05,91867.0,91866.0,0.4011045]
[1764860355326,0.05250764,91867.0,91866.0,0.4041045]
[1764860355731,0.00250764,91867.0,91866.0,0.4041045]
[1764860356032,0.04008762,91867.0,91866.0,0.4041045]
[1764860356234,8.762e-05,91867.0,91866.0,0.4041045]
[1764860356434,0.04008762,91867.0,91866.0,0.4041045]
[1764860356938,0.05008762,91867.0,91866.0,0.4041045]
[1764860357436,0.00016324,91873.0,91872.0,0.3891038]
[1764860357629,0.64011481,91890.0,91866.0,0.3866845]
[1764860357630,0.3608,91890.0,91889.0,0.3891018]
[1764860357835,0.4316817,91890.0,91889.0,0.3891018]
[1764860358039,0.18718,91887.0,91886.0,0.0108821]
[1764860358342,0.48128202,91887.0,91886.0,0.0108821]
[1764860358634,0.48128202,91887.0,91877.0,0.00016324]
[1764860358635,0.0108828,91881.0,91877.0,0.00016324]
[1764860358837,0.37040002,91878.0,91877.0,0.01104644]
[1764860359033,0.47040002,91878.0,91877.0,0.01104644]
[1764860359733,0.3608,91882.0,91881.0,0.0108827]
[1764860360032,4.079e-05,91887.0,91877.0,0.38926644]
[1764860360033,4.079e-05,91887.0,91886.0,0.3891021]
[1764860360241,0.00246081,91887.0,91886.0,0.3891021]
[1764860360435,0.00246081,91887.0,91877.0,0.02004644]
[1764860360436,0.0108826,91883.0,91877.0,0.00916324]
[1764860360636,0.0108826,91883.0,91882.0,0.19869]
[1764860360637,0.1108826,91883.0,91882.0,0.19869]
[1764860361442,4.079e-05,91887.0,91886.0,0.3891021]
[1764860361639,0.10246081,91887.0,91886.0,0.3891021]
[1764860361935,4.079e-05,91887.0,91886.0,0.3891021]
[1764860362143,0.3608,91907.0,91886.0,0.3891021]
[1764860362144,0.3608,91907.0,91895.0,0.3891011]
[1764860362338,0.05016324,91896.0,91895.0,0.3891011]
[1764860362827,0.00016324,91896.0,91895.0,0.3891011]
[1764860363028,0.00016324,91896.0,91895.0,0.2095711]
[1764860363029,0.23976326,91896.0,91895.0,0.2095711]
[1764860363335,0.06346416,91896.0,91895.0,0.2095711]
[1764860363839,0.10258326,91896.0,91895.0,0.2095711]
[1764860364044,0.10016324,91896.0,91895.0,0.3921011]
[1764860364343,0.05016324,91896.0,91895.0,0.3921011]
[1764860364542,0.10016324,91896.0,91895.0,0.3921011]
[1764860364737,0.28734324,91896.0,91895.0,0.2125711]
[1764860364944,0.10016324,91896.0,91895.0,0.3921011]
[1764860365342,0.05016324,91896.0,91895.0,0.3921011]
[1764860365539,0.04016324,91896.0,91895.0,0.3921011]
[1764860365844,0.00016324,91896.0,91895.0,0.3911011]
[1764860366045,0.05016324,91896.0,91895.0,0.3911011]
[1764860366539,0.23734324,91896.0,91895.0,0.3911011]
[1764860366744,0.05016324,91896.0,91895.0,0.3891011]
[1764860366937,0.00016324,91896.0,91895.0,0.3911011]
[1764860367138,0.04258326,91896.0,91895.0,0.3911011]
[1764860367440,0.10016324,91896.0,91895.0,0.3911011]
[1764860368235,0.12568502,91896.0,91895.0,0.3911011]
[1764860368536,0.05016324,91896.0,91895.0,0.3911011]
[1764860368737,0.00016324,91896.0,91895.0,0.3911011]
[1764860368940,0.3608,91907.0,91906.0,0.3890998]
[1764860369137,0.3608,91918.0,91910.0,0.1136393]
[1764860369343,0.0108796,91907.0,91906.0,0.0108797]
[1764860369541,0.4788596,91907.0,91906.0,0.0108797]
[1764860369740,0.50441142,91907.0,91906.0,0.0108797]
[1764860369935,0.26273182,91907.0,91906.0,0.3890997]
[1764860370144,0.06555182,91907.0,91906.0,0.3890997]
[1764860370441,0.02555182,91907.0,91906.0,0.3890997]
[1764860370642,0.00016324,91916.0,91915.0,0.37822]
[1764860371248,0.05016324,91916.0,91915.0,0.37822]
[1764860371843,0.00016324,91916.0,91915.0,0.37822]
[1764860372031,3.24e-06,91916.0,91915.0,0.37822]
[1764860372437,0.04000324,91916.0,91915.0,0.37822]
[1764860372638,0.05000324,91916.0,91915.0,0.37822]
[1764860373344,0.06088194,91916.0,91914.0,0.0108787]
[1764860373646,0.37040002,91915.0,91914.0,0.0108787]
[1764860373848,0.0108792,91911.0,91890.0,0.46356]
[1764860374038,0.1108792,91911.0,91890.0,0.46356]
[1764860374348,0.0108795,91909.0,91908.0,0.17372]
[1764860374535,0.05,91909.0,91908.0,0.3458995]
[1764860374742,0.010879,91913.0,91911.0,0.0108791]
[1764860374934,0.00242002,91912.0,91911.0,0.3458991]
[1764860375140,0.05242002,91912.0,91911.0,0.3458991]
[1764860375344,0.23795002,91912.0,91911.0,0.0108791]
[1764860375648,0.28795002,91912.0,91911.0,0.0108791]
[1764860376144,0.10242002,91912.0,91911.0,0.1845991]
[1764860376642,0.10242002,91912.0,91911.0,0.17372]
[1764860376845,0.10242002,91912.0,91911.0,0.33502]
[1764860377238,0.28795002,91912.0,91911.0,0.17372]
[1764860377642,0.0108802,91905.0,91904.0,0.01088]
[1764860377950,0.05242002,91905.0,91904.0,0.3459]
[1764860378138,0.0108792,91911.0,91910.0,0.3458993]
[1764860378341,0.001,91912.0,91911.0,0.33502]
[1764860378548,0.10342002,91912.0,91911.0,0.33502]
[1764860378747,0.44147002,91912.0,91890.0,0.46356]
[1764860378954,0.001,91905.0,91904.0,0.17372]
[1764860379251,0.05342002,91905.0,91904.0,0.17472]
[1764860379551,0.3608,91906.0,91904.0,0.33602]
[1764860379848,0.3608,91906.0,91905.0,0.33502]
[1764860380043,0.4008,91906.0,91905.0,0.33502]
[1764860380261,0.3608,91906.0,91905.0,0.33502]
[1764860380438,0.4108,91906.0,91905.0,0.33502]
[1764860381354,0.34005,91905.0,91904.0,0.001]
[1764860381544,0.44247002,91905.0,91904.0,0.001]
[1764860381950,0.44147002,91905.0,91890.0,0.46356]
[1764860382148,0.1,91905.0,91897.0,0.16345324]
[1764860382347,0.1,91905.0,91904.0,0.32069]
[1764860382541,0.12549899,91905.0,91904.0,0.32069]
[1764860382744,0.12549899,91905.0,91904.0,0.32169]
[1764860382952,0.001,91905.0,91904.0,0.32169]
[1764860383147,0.001,91905.0,91904.0,0.32069]
[1764860383646,0.001,91905.0,91897.0,0.00116324]
[1764860383647,0.3608,91923.0,91901.0,0.3608]
[1764860383847,0.02550928,91915.0,91914.0,0.32069]
[1764860384157,0.09000324,91916.0,91912.0,0.3608]
[1764860384158,3.24e-06,91916.0,91912.0,0.3608]
[1764860384654,0.05000324,91916.0,91915.0,0.32069]
[1764860385048,3.24e-06,91916.0,91915.0,0.32069]
[1764860385251,3.24e-06,91916.0,91914.0,0.5]
[1764860385452,0.00100324,91916.0,91914.0,0.8608]
[1764860385652,0.3608,91933.0,91932.0,0.32069]
[1764860385846,0.48632005,91933.0,91932.0,0.32069]
[1764860386454,0.38632005,91933.0,91932.0,0.32069]
[1764860386650,0.02552005,91933.0,91932.0,0.32069]
[1764860386852,0.00016324,91942.0,91941.0,0.32069]
[1764860387051,0.07258326,91942.0,91941.0,0.32069]
[1764860387247,0.09810807,91942.0,91941.0,0.32069]
[1764860387765,0.02568805,91942.0,91941.0,0.32069]
[1764860388250,0.00016324,91942.0,91941.0,0.68149]
[1764860388454,0.33694397,91970.0,91954.0,0.32069]
[1764860388655,0.4363273,91955.0,91954.0,0.32069]
[1764860388848,0.27931481,91970.0,91969.0,0.1574]
[1764860389047,0.12552832,91970.0,91969.0,0.1574]
[1764860389250,0.44077832,91970.0,91954.0,0.3608]
[1764860389553,0.02552832,91969.0,91954.0,0.3608]
[1764860389754,0.02552832,91969.0,91968.0,0.32069]
[1764860389755,0.1,91969.0,91968.0,0.32069]
[1764860389954,0.12551519,91969.0,91968.0,0.32069]
[1764860391261,0.1,91969.0,91968.0,0.32069]
[1764860391648,0.1,91969.0,91954.0,0.3608]
[1764860391649,0.41525,91969.0,91954.0,0.3608]
[1764860391851,0.3608,91966.0,91954.0,0.3608]
[1764860392054,0.27931481,91964.0,91963.0,0.1574]
[1764860392358,0.27931481,91964.0,91954.0,0.3608]
[1764860392359,0.38767002,91964.0,91954.0,0.3608]
[1764860392559,0.00242002,91955.0,91954.0,0.5182]
[1764860392762,0.00242002,91955.0,91954.0,0.68149]
[1764860393351,0.27931481,91964.0,91954.0,0.68149]
[1764860393550,0.00242002,91955.0,91954.0,0.68149]
[1764860393758,0.27931481,91964.0,91954.0,0.68149]
[1764860394057,0.001,91955.0,91954.0,0.68149]
[1764860394751,0.051,91955.0,91954.0,0.68149]
[1764860395352,0.05,91955.0,91954.0,0.68149]
[1764860395749,0.41525,91955.0,91954.0,0.3608]
[1764860395947,0.05,91955.0,91954.0,0.3608]
[1764860396150,0.05,91955.0,91954.0,0.68149]
[1764860396363,0.41625,91955.0,91954.0,0.68149]
[1764860396661,0.41625,91955.0,91954.0,0.3608]
[1764860397351,0.41625,91955.0,91954.0,0.68149]
[1764860397552,0.051,91955.0,91954.0,0.68149]
[1764860397753,0.041,91955.0,91954.0,0.68149]
[1764860397958,0.001,91955.0,91954.0,0.68149]
[1764860398160,0.051,91955.0,91954.0,0.68149]
[1764860398357,0.001,91955.0,91954.0,0.68149]
[1764860398559,0.05342002,91955.0,91954.0,0.68149]